[Event "Tsaghkadzor Open 2024"]
[Site "Tsaghkadzor"]
[Date "2024.10.02"]
[Round "3.1"]
[White "Karthik Venkataraman"]
[Black "Agasarov, Benik"]
[Result "1-0"]
[ECO "A45"]
[WhiteElo "2581"]
[BlackElo "2387"]
[Annotator "RC"]
[PlyCount "65"]
[EventDate "2024.09.13"]
[EventType "swiss"]
[EventCountry "ARM"]
[SourceTitle "playchess.com"]
[Source "ChessBase"]
[SourceQuality "1"]
[TimeControl "40/5400+30:1800+30"]

1. d4 {[%emt 0:00:12]} Nf6 {[%emt 0:00:14]} 2. Bg5 {[%emt 0:00:23]} Nc6 {[%emt 0:03:54]} 3. Nc3 {[%emt 0:08:51]} e5 {[%emt 0:02:58]} 4. dxe5 {[%emt 0:00:53]} Nxe5 {[%emt 0:00:10]} 5. Qd4 {[%emt 0:00:05]} d6 {[%emt 0:06:34]} 6. Nf3 {[%emt 0:07:45]} Nxf3+ {[%emt 0:02:46]} 7. gxf3 {[%emt 0:00:29]} Be7 {[%emt 0:00:11]} 8. Rg1 {[%emt 0:00:24]} Be6 {[%emt 0:02:42]} 9. O-O-O {[%emt 0:00:30]} c5 {[%emt 0:27:22]} 10. Qh4 {[%emt 0:04:57]} Qa5 {[%emt 0:06:25]} 11. Kb1 {[%emt 0:11:23]} d5 {[%emt 0:04:08]} 12. Bh3 {[%emt 0:01:23]} O-O-O {[%emt 0:22:18]} 13. Nxd5 {[%emt 0:16:42]} Nxd5 {[%emt 0:02:20]} 14. Bxe6+ {[%emt 0:00:06]} fxe6 {[%emt 0:00:03]} 15. Bxe7 {[%emt 0:00:05]} Rd7 {[%emt 0:00:27]} 16. Bg5 {[%emt 0:00:17]} h6 {[%emt 0:05:23]} 17. Bd2 {[%emt 0:02:11]} Qd8 {[%emt 0:01:55]} 18. Qc4 {[%emt 0:03:09]} b6 {[%emt 0:01:05]} 19. Kc1 {[%emt 0:04:41]} g5 {[%emt 0:01:09]} 20. Qe4 {[%emt 0:00:41]} Re8 {[%emt 0:02:17]} 21. c4 {[%emt 0:00:27]} Nc7 {[%emt 0:00:15]} 22. Bc3 {[%emt 0:00:09]} Rf8 {[%emt 0:01:31]} 23. Be5 {[%emt 0:01:04]} Rff7 {[%emt 0:01:16]} 24. b3 {[%emt 0:03:37]} Rxd1+ {[%emt 0:00:19]} 25. Rxd1 {[%emt 0:00:02]} Rd7 {[%emt 0:00:06]} 26. Rxd7 {[%emt 0:00:41]} Qxd7 {[%emt 0:00:04]} 27. Qg6 {[%emt 0:00:46]} b5 {[%emt 0:00:13]} 28. Qxh6 {[%emt 0:01:30]} bxc4 {[%emt 0:00:17]} 29. Qf8+ {[%emt 0:00:07]} Kb7 {[%emt 0:00:20]} 30. bxc4 {[%emt 0:00:22]} Na6 {[%emt 0:00:23]} 31. Qg7 {[%emt 0:00:20]} Nb8 {[%emt 0:01:01]} 32. Kc2 {[%emt 0:02:02]} Ka6 {[%emt 0:00:06]} 33. Qxd7 {[%emt 0:00:13]} 1-0

[Event "Tsaghkadzor Open 2024"]
[Site "Tsaghkadzor"]
[Date "2024.10.02"]
[Round "3.2"]
[White "Andriasian, Zaven"]
[Black "Davtyan, Arsen"]
[Result "1-0"]
[ECO "C54"]
[WhiteElo "2558"]
[BlackElo "2377"]
[Annotator "TA"]
[PlyCount "120"]
[EventDate "2024.09.13"]
[EventType "swiss"]
[EventCountry "ARM"]
[SourceTitle "playchess.com"]
[Source "ChessBase"]
[SourceQuality "1"]
[TimeControl "40/5400+30:1800+30"]

{[%evp 40,120,173,0,0,0,0,0,0,0,73,76,65,67,70,63,83,81,77,68,62,68,82,76,94,95,123,124,122,131,113,125,135,123,130,132,146,146,145,142,222,215,220,220,218,176,171,169,181,170,170,116,341,342,371,344,342,310,454,472,531,524,525,469,531,524,487,490,442,482,852,597,742,745,543,488,459,429,737,653,1280,1208,937]} 1. e4 {[%emt 0:00:02]} e5 {[%emt 0:01:28]} 2. Nf3 {[%emt 0:00:04]} Nc6 {[%emt 0:00:04]} 3. Bc4 {[%emt 0:00:11]} Bc5 {[%emt 0:00:08]} 4. d3 {[%emt 0:00:15]} Nf6 {[%emt 0:00:08]} 5. Nbd2 {[%emt 0:00:08]} O-O {[%emt 0:00:41]} 6. O-O {[%emt 0:00:11]} d6 {[%emt 0:00:26]} 7. c3 {[%emt 0:00:09]} a5 {[%emt 0:00:21] C54: Giuoco Piano: 4 c3 Nf6, main lines with 5 d4 and 5 d3.} 8. h3 {[%emt 0:00:13]} h6 {[%emt 0:00:55]} 9. Re1 {[%emt 0:00:08]} a4 {[%emt 0:03:26]} 10. Bb5 {[%emt 0:01:32]} Bd7 {[%emt 0:00:11]} 11. Nf1 {[%emt 0:00:52]} Ne7 {[%emt 0:00:04]} 12. Bxd7 {[%emt 0:00:45]} Nxd7 {[%emt 0:01:35] now scores much better than the old 12...Qxd7.} 13. d4 {[%emt 0:04:09]} Bb6 {[%emt 0:00:28]} 14. g4 $146 {[%emt 0:14:46]} ({Predecessor:} 14. Qc2 exd4 15. Nxd4 d5 16. Ng3 Re8 17. Be3 dxe4 18. Qxe4 Nf6 19. Qxb7 Nfd5 20. Nc6 Nxc6 21. Bxb6 {0-1 So,W (2757)-Caruana,F (2796) Zagreb Superbet Blitz 2024 (5)}) 14... d5 {[%emt 0:32:35]} 15. exd5 {[%emt 0:19:19]} exd4 {[%emt 0:01:55]} 16. Nxd4 {[%emt 0:00:12]} Nxd5 {[%emt 0:24:02]} 17. Nf5 {[%emt 0:00:23]} N5f6 {[%emt 0:02:47]} 18. Qf3 {[%emt 0:05:54]} Re8 {[%emt 0:01:24]} 19. Bf4 {[%emt 0:03:25]} Nc5 {[%emt 0:06:14]} 20. N1e3 {[%emt 0:06:50]} Qd3 {[%emt 0:04:05]} 21. Rad1 $2 {[%emt 0:17:34]} (21. Bxh6 $1 $18 Qe4 22. Qxe4 Ncxe4 23. Bxg7 (23. Nxg7 Red8 $18) 23... Bxe3 24. Rxe3) 21... Qe4 $11 {[%emt 0:00:35]} 22. Qxe4 {[%emt 0:00:31]} Rxe4 {[%emt 0:01:34]} 23. Bg3 {[%emt 0:00:10]} Rae8 {[%emt 0:06:56]} 24. Kf1 {[%emt 0:03:04]} (24. f3 $5 R4e6 $8 25. Bf2 $11) 24... h5 {[%emt 0:03:56]} (24... R4e6 $11 {keeps the balance.}) 25. f3 $16 {[%emt 0:06:00]} R4e6 {[%emt 0:00:06]} 26. Nc4 {[%emt 0:00:48]} Rxe1+ {[%emt 0:05:18]} 27. Bxe1 {[%emt 0:02:01]} hxg4 {[%emt 0:00:20]} 28. Nxb6 {[%emt 0:03:11]} cxb6 {[%emt 0:00:01]} 29. hxg4 {[%emt 0:00:10]} g6 {[%emt 0:00:43]} 30. Nd6 {[%emt 0:02:18]} Re3 {[%emt 0:00:57]} 31. Kf2 {[%emt 0:00:44]} Rd3 {[%emt 0:00:38]} 32. Ke2 {[%emt 0:01:22]} Nd5 {[%emt 0:00:25]} 33. Bd2 $1 {[%emt 0:04:06]} Nf6 {[%emt 0:01:04]} 34. Be3 {[%emt 0:01:41]} Rxd1 {[%emt 0:00:28]} 35. Kxd1 {[%emt 0:00:02]} Nfd7 {[%emt 0:01:21]} 36. Nc4 {[%emt 0:01:24]} b5 {[%emt 0:00:37] [#]} 37. Nd6 $1 {[%emt 0:00:33]} Nd3 {[%emt 0:00:03]} 38. b4 {[%emt 0:00:58]} (38. Nxb7 Nxb2+ 39. Ke2 Nc4 $11) 38... axb3 {[%emt 0:00:11]} 39. axb3 {[%emt 0:00:02]} (39. Nxb5 $2 bxa2 40. Ke2 a1=Q $19 (40... a1=B 41. Kxd3 Ne5+ 42. Ke4 $16)) 39... b4 {[%emt 0:00:55]} (39... Kf8 $16 40. Ke2 (40. Nxb5 Ke7 $18) (40. Nxb7 N3e5 $16) 40... N3e5 41. Nxb5 Ke7) 40. Ke2 $18 {[%emt 0:00:00]} (40. Nxb7 bxc3 41. Bd4 N3e5 $14) 40... N3e5 {[%emt 0:00:00]} 41. cxb4 {[%emt 0:16:39]} ({Weaker is} 41. Nxb7 bxc3 42. g5 Nc6 $14) 41... Nc6 {[%emt 0:16:23]} 42. Nxb7 {[%emt 0:03:05]} Nxb4 {[%emt 0:00:05]} 43. Nc5 {[%emt 0:00:31]} Ne5 {[%emt 0:00:33]} 44. Bd2 {[%emt 0:01:49]} Nd5 {[%emt 0:00:14]} 45. Bc1 {[%emt 0:02:59]} (45. g5 $18) 45... f5 $2 {[%emt 0:08:34] [#]} (45... Kf8 $16 46. Bb2 Nc6) 46. g5 $1 $18 {[%emt 0:06:02]} Kf7 {[%emt 0:00:52]} 47. f4 {[%emt 0:00:28]} Nc6 {[%emt 0:00:15]} 48. Kd3 {[%emt 0:00:19]} Nc7 {[%emt 0:02:22]} (48... Nb6 $142 49. Na4 Nc8) 49. Bd2 $18 {[%emt 0:00:43]} Ke7 {[%emt 0:03:17]} 50. Kc4 {[%emt 0:00:35]} Kd6 {[%emt 0:00:03]} 51. Nb7+ {[%emt 0:02:10]} Kd7 {[%emt 0:00:19]} 52. b4 {[%emt 0:00:32]} Na7 {[%emt 0:00:16]} 53. Nc5+ {[%emt 0:00:39]} Kd6 {[%emt 0:00:25]} 54. Nd3 {[%emt 0:00:13]} Ne6 {[%emt 0:02:42]} (54... Nc8 $142 55. Ne5 Nb6+ 56. Kd3 Ke7 57. Nxg6+ Ke6) 55. Be3 {[%emt 0:02:40]} Nc6 {[%emt 0:00:22]} 56. b5 {[%emt 0:00:53]} Na5+ {[%emt 0:00:13]} 57. Kb4 {[%emt 0:00:01]} Nb7 {[%emt 0:00:03]} 58. Ne5 {[%emt 0:00:23]} Kd5 {[%emt 0:01:30]} (58... Nc7 $142 59. Bd2 (59. Nxg6 Nd5+ 60. Ka4 Nxe3 $11) 59... Ke6) 59. Nxg6 $18 {[%emt 0:00:21]} Ke4 {[%emt 0:00:07]} 60. Bc1 {[%emt 0:00:20]} Kd5 {[%emt 0:02:50]} 1-0

[Event "Tsaghkadzor Open 2024"]
[Site "Tsaghkadzor"]
[Date "2024.10.02"]
[Round "3.3"]
[White "Audi Ameya"]
[Black "Sahakyan, Aleks"]
[Result "1-0"]
[ECO "C54"]
[WhiteElo "2413"]
[BlackElo "2267"]
[Annotator "TA"]
[PlyCount "87"]
[EventDate "2024.09.13"]
[EventType "swiss"]
[EventCountry "ARM"]
[SourceTitle "playchess.com"]
[Source "ChessBase"]
[SourceQuality "1"]
[TimeControl "40/5400+30:1800+30"]

{[%evp 10,87,17,12,11,12,20,17,17,20,28,6,4,3,15,4,27,17,19,0,9,21,26,15,10,6,17,17,25,29,26,29,50,47,53,48,112,127,250,231,247,152,248,255,501,404,383,393,399,406,412,410,411,403,444,439,440,447,441,437,473,489,483,485,516,509,572,570,570,562,568,564,550,540,572,556,535,540,578,573]} 1. e4 {[%emt 0:00:02]} e5 {[%emt 0:00:34]} 2. Nf3 {[%emt 0:00:10]} Nc6 {[%emt 0:00:07]} 3. Bc4 {[%emt 0:00:05]} Nf6 {[%emt 0:00:28]} 4. d3 {[%emt 0:00:05]} Bc5 {[%emt 0:00:04]} 5. O-O {[%emt 0:00:26]} d6 {[%emt 0:00:06]} 6. c3 {[%emt 0:00:11]} a5 {[%emt 0:00:07]} 7. Re1 {[%emt 0:00:25]} h6 {[%emt 0:00:43]} 8. Nbd2 {[%emt 0:00:57][%cal Bb1d2,Bd2f1,Bf1g3][%mdl 32]} O-O {[%emt 0:00:09] The position is equal.} 9. h3 {[%emt 0:03:42]} a4 {[%emt 0:00:06]} 10. Bb5 {[%emt 0:00:49]} Bd7 {[%emt 0:00:05]} 11. Nf1 {[%emt 0:09:56]} Ne7 {[%emt 0:00:11]} 12. Bxd7 {[%emt 0:00:07]} Nxd7 {[%emt 0:00:04]} 13. Ng3 {[%emt 0:04:40]} f5 {[%emt 0:04:02]} 14. d4 {[%emt 0:05:40]} Bb6 {[%emt 0:05:43]} 15. exf5 {[%emt 0:09:30]} Nxf5 {[%emt 0:00:59]} 16. Nxf5 {[%emt 0:00:04]} Rxf5 {[%emt 0:00:05]} 17. Be3 {[%emt 0:00:57]} e4 {[%emt 0:10:44]} 18. Nd2 {[%emt 0:00:42]} d5 {[%emt 0:00:10]} 19. Qg4 {[%emt 0:01:35][%csl LRf5,LRh6]} Rf6 {[%emt 0:20:02]} 20. f3 {[%emt 0:01:56]} exf3 {[%emt 0:01:15]} 21. Nxf3 {[%emt 0:00:03][%cal Bd2f3,Bf3e5,Be5g4][%mdl 32]} Nf8 {[%emt 0:01:15]} 22. Ne5 {[%emt 0:00:47] And now Rf1 would win.} Qc8 {[%emt 0:05:56] [#] White now steadily converts the win.} (22... Qe7 $14) 23. Qg3 $1 $16 {[%emt 0:00:40] White has more active pieces.} Ra6 {[%emt 0:02:06]} (23... c6 $16 {was called for.}) 24. Ng4 $18 {[%emt 0:04:27]} Rg6 {[%emt 0:01:08]} 25. Qf3 {[%emt 0:00:04][%cal Oe1e2] Strongly threatening Re2!} Qd8 {[%emt 0:00:57]} (25... Re6 $16 {was necessary.} 26. Qxd5 c6) 26. Rf1 {[%emt 0:00:38] aiming for Qf7+.} Ne6 $2 {[%emt 0:11:16]} (26... Qe8 {was worth a try.} 27. Qxd5+ Kh7 28. Bxh6 (28. Qxb7 Rxg4 29. Qxa6 Qxe3+ 30. Kh1 Rf4 $18) 28... Re6) 27. Qf7+ {[%emt 0:09:13]} Kh7 {[%emt 0:00:11]} 28. Qf5 {[%emt 0:00:36] [#] Hoping for Ne5.} c5 {[%emt 0:03:10][%cal Rc5d4]} 29. Ne5 {[%emt 0:01:02]} Qe8 {[%emt 0:00:56]} 30. Nxg6 {[%emt 0:04:03]} (30. Qxg6+ Qxg6 31. Nxg6 cxd4 32. Nf8+ Nxf8 $16) 30... Qxg6 {[%emt 0:00:52]} 31. dxc5 {[%emt 0:00:05]} ({Don't play} 31. Qxd5 cxd4 32. cxd4 Nxd4 $18) 31... Bxc5 {[%emt 0:00:52]} 32. Bxc5 {[%emt 0:00:49] White is clearly winning.} Nxc5 {[%emt 0:00:08]} 33. Rad1 {[%emt 0:02:00][%cal Ba1d1,Bd1d5,Bd5d7][%mdl 32]} Ne4 {[%emt 0:02:31]} 34. Rxd5 {[%emt 0:10:28]} Qxf5 {[%emt 0:00:47]} 35. Rfxf5 {[%emt 0:00:04][%mdl 4096] Endgame. KRR-KRN} (35. Rdxf5 Ng3 36. R5f3 Nxf1 37. Kxf1 Rb6 $16) 35... a3 {[%emt 0:00:28]} 36. bxa3 {[%emt 0:00:04]} Rxa3 {[%emt 0:00:14]} 37. Rd7 {[%emt 0:04:00]} Rxa2 {[%emt 0:01:11]} 38. Rff7 {[%emt 0:00:18]} (38. Rxb7 Nd6 39. Rff7 Nxf7 40. Rxf7 Rc2 $16) 38... Kg6 {[%emt 0:00:18]} 39. Rxg7+ {[%emt 0:00:09]} Kf5 {[%emt 0:00:05]} 40. Rdf7+ {[%emt 0:00:00]} Ke5 {[%emt 0:00:00]} 41. Re7+ {[%emt 0:19:48]} Kf5 {[%emt 0:15:38]} 42. Rgf7+ {[%emt 0:01:12]} Kg6 {[%emt 0:00:14]} 43. Rf3 {[%emt 0:00:17]} Nd2 {[%emt 0:01:16]} 44. Rd3 {[%emt 0:01:59] Weighted Error Value: White=0.07 (flawless) /Black=0.29 (precise) .  Mistake:       	---       	Black=4      Inaccurate:     	White=1     	---        OK:         	White=22    	Black=10     Best:        	White=2     	Black=2      Strong:       	White=1     	---} 1-0

[Event "Tsaghkadzor Open 2024"]
[Site "Tsaghkadzor"]
[Date "2024.10.02"]
[Round "3.4"]
[White "Hakobyan, Erik"]
[Black "Lysyj, Igor"]
[Result "1/2-1/2"]
[ECO "C83"]
[WhiteElo "2386"]
[BlackElo "2589"]
[Annotator "TA"]
[PlyCount "34"]
[EventDate "2024.09.13"]
[EventType "swiss"]
[EventCountry "ARM"]
[SourceTitle "playchess.com"]
[Source "ChessBase"]
[SourceQuality "1"]
[TimeControl "40/5400+30:1800+30"]

{[%evp 24,34,10,0,0,0,0,0,0,0,0,0,47]} 1. e4 {[%emt 0:00:02]} e5 {[%emt 0:00:42]} 2. Nf3 {[%emt 0:00:08]} Nc6 {[%emt 0:00:09]} 3. Bb5 {[%emt 0:00:16]} a6 {[%emt 0:00:04]} 4. Ba4 {[%emt 0:00:05]} Nf6 {[%emt 0:00:05]} 5. O-O {[%emt 0:00:09]} Nxe4 {[%emt 0:00:04]} 6. d4 {[%emt 0:00:13]} b5 {[%emt 0:00:04]} 7. Bb3 {[%emt 0:00:05]} d5 {[%emt 0:00:04]} 8. dxe5 {[%emt 0:00:05]} Be6 {[%emt 0:00:05]} 9. c3 {[%emt 0:00:26]} Be7 {[%emt 0:00:08]} 10. Be3 {[%emt 0:02:34]} O-O {[%emt 0:01:35]} 11. Nbd2 {[%emt 0:02:51]} Nxd2 {[%emt 0:00:25]} 12. Qxd2 {[%emt 0:03:19]} Na5 {[%emt 0:00:13]} 13. Bc2 {[%emt 0:00:36] Die Stellung ist ausgeglichen.} Nc4 {[%emt 0:00:46][%csl LRb2,LRd2]} 14. Qd3 {[%emt 0:01:06][%csl Gc2][%cal Rd3h7] [#]} g6 {[%emt 0:00:09]} 15. Bc1 {[%emt 0:00:15]} Bf5 {[%emt 0:31:47]} 16. Qe2 {[%emt 0:00:59] Droht stark Bxf5.} Bxc2 {[%emt 0:03:29]} 17. Qxc2 {[%emt 0:00:59]} Qd7 {[%emt 0:00:02] Nicht viel passiert in dieser Partie.   Gewichteter Fehlerwert: Weiß=0.02 (makellos) /Schwarz=0.00 (makellos) .  Fehler:       	---       	Schwarz=1     OK:         	Weiß=3     	Schwarz=2     Bester:       	---       	Schwarz=1} (17... f6 $11 {scheint genauer.}) 1/2-1/2

[Event "Tsaghkadzor Open 2024"]
[Site "Tsaghkadzor"]
[Date "2024.10.02"]
[Round "3.5"]
[White "Sukiasyan, Vahe A."]
[Black "Gabuzyan, Hovhannes"]
[Result "1/2-1/2"]
[ECO "B07"]
[WhiteElo "2358"]
[BlackElo "2579"]
[Annotator "TA"]
[PlyCount "65"]
[EventDate "2024.09.13"]
[EventType "swiss"]
[EventCountry "ARM"]
[SourceTitle "playchess.com"]
[Source "ChessBase"]
[SourceQuality "1"]
[TimeControl "40/5400+30:1800+30"]

{[%evp 9,65,22,20,14,30,22,38,29,31,37,78,83,195,220,210,193,213,205,220,209,225,160,158,123,145,119,136,135,131,129,172,178,199,179,181,163,207,199,210,213,206,232,196,205,205,194,202,135,117,108,117,63,63,63,63,63,63,64]} 1. d4 {[%emt 0:00:04]} Nf6 {[%emt 0:01:10]} 2. Nf3 {[%emt 0:00:07]} g6 {[%emt 0:00:06]} 3. Nbd2 {[%emt 0:00:07]} Bg7 {[%emt 0:01:01]} 4. e4 {[%emt 0:00:06]} d6 {[%emt 0:00:00]} 5. Bb5+ {[%emt 0:00:04]} c6 {[%emt 0:00:00]} 6. Bd3 {[%emt 0:00:05]} Nh5 {[%emt 0:02:38]} 7. c3 {[%emt 0:09:46]} O-O {[%emt 0:03:24]} 8. O-O {[%emt 0:00:17][%cal Be1g1,Bg1g2,Bg2h1][%mdl 32]} Nf4 {[%emt 0:01:55]} 9. Bc2 {[%emt 0:00:15]} Qd7 {[%emt 0:04:45]} 10. Nc4 {[%emt 0:08:18]} Nxg2 {[%emt 0:11:49]} 11. Kxg2 $18 {[%emt 0:00:13]} Qh3+ {[%emt 0:00:06]} 12. Kh1 {[%emt 0:00:03]} Bg4 {[%emt 0:00:07]} 13. Ncd2 {[%emt 0:00:04]} Bh6 {[%emt 0:00:17] ...Bxd2 is the strong threat.} 14. Rg1 {[%emt 0:00:26]} Bf4 {[%emt 0:00:21] [#]} ({But not} 14... Bxd2 $2 15. Rg3 Bxf3+ 16. Rxf3 $18) 15. Rxg4 $1 {[%emt 0:08:43]} Qxg4 {[%emt 0:00:56]} 16. Nc4 {[%emt 0:00:17]} Nd7 {[%emt 0:04:05][%cal Bb8d7,Bd7f6,Bf6h5][%mdl 32]} 17. Bxf4 {[%emt 0:03:41]} Qxf4 {[%emt 0:00:02]} 18. Qe2 {[%emt 0:00:08]} a5 {[%emt 0:04:40]} 19. a4 {[%emt 0:02:04]} Nf6 {[%emt 0:01:53]} 20. Rg1 {[%emt 0:03:41]} b5 {[%emt 0:04:18]} 21. axb5 {[%emt 0:07:06]} cxb5 {[%emt 0:00:06] [#]} 22. Ne3 {[%emt 0:00:05]} e6 {[%emt 0:05:34] [#]} 23. e5 $1 {[%emt 0:04:51]} dxe5 {[%emt 0:01:09]} 24. dxe5 {[%emt 0:03:16]} ({Don't take} 24. Nxe5 a4) 24... Nh5 {[%emt 0:01:25]} 25. Rg4 $1 {[%emt 0:00:36]} Qh6 {[%emt 0:00:05]} 26. Qxb5 {[%emt 0:04:23]} Rab8 {[%emt 0:01:12]} 27. Qxa5 {[%emt 0:00:25]} Rxb2 {[%emt 0:00:06]} 28. Rb4 {[%emt 0:04:31]} Rxb4 {[%emt 0:00:20]} 29. Qxb4 {[%emt 0:00:06]} Ra8 {[%emt 0:00:19]} 30. h4 {[%emt 0:03:48]} ({White should play} 30. Qb2 $16) 30... Qf4 $14 {[%emt 0:05:46] White is slightly better.} 31. Qxf4 {[%emt 0:00:23]} Nxf4 {[%emt 0:00:02]} 32. c4 {[%emt 0:00:34]} Ra5 {[%emt 0:00:05]} 33. Kh2 {[%emt 0:01:51] Weighted Error Value: White=0.14 (very precise) /Black=0.15 (very precise) .  Mistake:       	White=1     	Black=1      Inaccurate:     	White=1     	Black=2      OK:         	White=12    	Black=7      Best:        	White=3     	Black=5} 1/2-1/2

[Event "Tsaghkadzor Open 2024"]
[Site "Tsaghkadzor"]
[Date "2024.10.02"]
[Round "3.6"]
[White "Chaqryan, Erik"]
[Black "Nozdrachev, Vladislav"]
[Result "1/2-1/2"]
[ECO "E05"]
[WhiteElo "2335"]
[BlackElo "2515"]
[Annotator "TA"]
[PlyCount "103"]
[EventDate "2024.09.13"]
[EventType "swiss"]
[EventCountry "ARM"]
[SourceTitle "playchess.com"]
[Source "ChessBase"]
[SourceQuality "1"]
[TimeControl "40/5400+30:1800+30"]

{[%evp 12,103,28,0,32,10,6,20,14,15,6,2,7,0,0,1,0,0,6,-7,7,0,47,39,33,11,8,10,14,14,14,16,12,-14,-18,-11,18,10,9,0,21,23,29,18,16,16,17,0,0,0,20,-11,0,-24,-17,-22,-21,-51,-18,-75,-47,-70,-79,-89,-93,-93,-50,-95,-68,-138,-153,-155,-141,-155,-50,-59,-50,-32,-12,-16,-9,-27,-8,-15,-8,-16,0,-8,0,0,0,0,0,0]} 1. d4 {[%emt 0:00:38]} d5 {[%emt 0:00:13]} 2. c4 {[%emt 0:00:06]} e6 {[%emt 0:00:04]} 3. g3 {[%emt 0:00:05]} Nf6 {[%emt 0:00:15]} 4. Nf3 {[%emt 0:00:53]} Be7 {[%emt 0:00:11]} 5. Bg2 {[%emt 0:00:18]} O-O {[%emt 0:00:10]} 6. O-O {[%emt 0:00:07]} dxc4 {[%emt 0:03:23]} 7. Qc2 {[%emt 0:00:22]} b6 {[%emt 0:00:35]} 8. Qxc4 {[%emt 0:15:47]} (8. Ne5 {is interesting.} Qxd4 9. Bxa8 Qxe5 10. Bf3) 8... Bb7 {[%emt 0:00:29]} 9. Nc3 {[%emt 0:01:11]} c5 {[%emt 0:03:23]} 10. dxc5 {[%emt 0:10:13]} Bxc5 {[%emt 0:01:55]} 11. b4 {[%emt 0:01:18]} Be7 {[%emt 0:03:20]} 12. Bb2 {[%emt 0:12:56]} Nbd7 {[%emt 0:07:01]} 13. Rfd1 {[%emt 0:16:36]} Rc8 {[%emt 0:07:58]} 14. Qd4 {[%emt 0:01:14]} a6 {[%emt 0:00:26]} 15. g4 {[%emt 0:08:57]} h6 {[%emt 0:04:06]} 16. h4 {[%emt 0:02:55] Strongly threatening g5.} Bxf3 {[%emt 0:00:55]} (16... Nb8 $11 {is superior.}) 17. Bxf3 $14 {[%emt 0:01:41] [#] Threatens to win with g5.} e5 {[%emt 0:00:44]} 18. Qd3 {[%emt 0:08:38]} Bxb4 {[%emt 0:03:20]} 19. Ne4 {[%emt 0:09:34]} Nxe4 {[%emt 0:03:32]} 20. Qxe4 {[%emt 0:00:11]} Bc3 {[%emt 0:00:35] Black is weak on the light squares} 21. Bxc3 {[%emt 0:01:34]} Rxc3 {[%emt 0:00:08]} 22. Qd5 {[%emt 0:01:27]} (22. g5 $5 hxg5 23. Qg4 $11) 22... Rc7 {[%emt 0:00:49]} 23. Qd6 {[%emt 0:00:59] Bc6 is the strong threat.} Qb8 {[%emt 0:03:19]} 24. g5 {[%emt 0:00:14]} hxg5 {[%emt 0:00:05]} 25. hxg5 {[%emt 0:00:02] Black must now prevent Bd5.} b5 {[%emt 0:06:40]} 26. g6 {[%emt 0:02:43] And now Bd5 would win.} Nf6 {[%emt 0:00:19]} 27. Qxe5 {[%emt 0:00:43]} fxg6 {[%emt 0:00:29]} 28. Qe6+ {[%emt 0:00:55]} Rcf7 {[%emt 0:00:20]} 29. Rd4 {[%emt 0:01:14][%mdl 1024] White has compensation.} g5 {[%emt 0:03:30][%cal Og5g4]} 30. Rad1 {[%emt 0:00:33]} (30. Qxa6 g4 31. Bg2 Qe5) 30... Re8 {[%emt 0:02:57][%cal Bf8e8,Be8e5,Be5c5,Bc5c3,Bc3d3][%mdl 32]} 31. Qf5 {[%emt 0:01:04] [#]} g4 $1 {[%emt 0:02:59]} 32. Bc6 {[%emt 0:00:37]} (32. Bxg4 $5 Ne4 33. Qh5 $11) 32... Qe5 {[%emt 0:02:52]} 33. Qxe5 {[%emt 0:00:37]} Rxe5 {[%emt 0:00:06]} 34. R1d2 {[%emt 0:00:26]} Rfe7 {[%emt 0:01:46][%cal Oe5e6]} 35. Kf1 {[%emt 0:00:30]} (35. Rd8+ $11 {remains equal.} Kh7 36. Ra8) 35... a5 {[%emt 0:02:09]} 36. a3 {[%emt 0:00:38]} Rc5 {[%emt 0:00:46]} 37. Ba8 {[%emt 0:00:29]} Kf7 {[%emt 0:00:57]} 38. Kg2 {[%emt 0:00:30]} Rc3 {[%emt 0:00:20]} 39. Ra2 {[%emt 0:00:20]} g3 {[%emt 0:01:02]} 40. fxg3 {[%emt 0:00:00]} (40. Rd3 $15 Rxd3 41. exd3) 40... Ree3 $17 {[%emt 0:00:00][%csl LRa3,LRg3]} 41. Rd3 {[%emt 0:22:08]} Rexd3 {[%emt 0:17:55]} 42. exd3 {[%emt 0:00:02]} Rxd3 {[%emt 0:00:08][%mdl 4096] Endgame. KRB-KRN} (42... a4 $17 {[%cal Of7e6] Hoping for ...Ke6!} 43. Rb2 Rb3 (43... Rxa3 44. Rxb5 Rxd3 45. Bc6 $17)) 43. Rb2 $15 {[%emt 0:00:04]} Rxa3 {[%emt 0:00:11]} 44. Rxb5 {[%emt 0:00:03]} a4 {[%emt 0:00:07]} 45. Ra5 {[%emt 0:01:09]} Ra1 {[%emt 0:00:16]} 46. Kh3 {[%emt 0:04:13]} a3 {[%emt 0:00:11]} 47. g4 {[%emt 0:00:11][%cal Bg3g4,Bg4g5][%mdl 32] The position is equal.} Ke7 {[%emt 0:01:46]} 48. Ra7+ {[%emt 0:00:51]} Kf8 {[%emt 0:00:29]} 49. g5 {[%emt 0:00:29]} Ne8 {[%emt 0:00:29]} 50. Bd5 {[%emt 0:01:34]} Nd6 {[%emt 0:00:07] Against Rf7+} 51. Ra8+ {[%emt 0:00:39]} Ke7 {[%emt 0:00:08]} 52. Ra7+ {[%emt 0:00:06] Weighted Error Value: White=0.11 (very precise) /Black=0.11 (very precise) .  Mistake:       	White=2     	Black=2      Inaccurate:     	White=4     	Black=4      OK:         	White=18    	Black=14     Best:        	White=2     	Black=2} 1/2-1/2